[Event "*** Titled Tuesday Blitz"]
[Site "Chess.com"]
[Date "2018.11.06"]
[Round "9"]
[White "Mbneu"]
[Black "ahachess"]
[Result "1-0"]
[WhiteElo "2284"]
[BlackElo "2301"]
[TimeControl "180+2"]
[EndTime "15:06:31 PST"]
[Termination "Mbneu won by resignation"]

1. d4 {[%clk 0:03:01.9]} 1... Nf6 {[%clk 0:03:00.4]} 2. c4 {[%clk 0:03:02]} 2...
g6 {[%clk 0:03:01.5]} 3. Nc3 {[%clk 0:03:02.4]} 3... Bg7 {[%clk 0:03:02.9]} 4.
e4 {[%clk 0:03:02.9]} 4... d6 {[%clk 0:03:03.6]} 5. f4 {[%clk 0:03:04.3]} 5...
O-O {[%clk 0:03:04.3]} 6. Nf3 {[%clk 0:03:05.8]} 6... c5 {[%clk 0:02:54.3]} 7.
d5 {[%clk 0:03:06.3]} 7... e6 {[%clk 0:02:55.2]} 8. Be2 {[%clk 0:03:06.3]} 8...
exd5 {[%clk 0:02:55.8]} 9. cxd5 {[%clk 0:03:08.2]} 9... Re8 {[%clk 0:02:56.7]}
10. e5 {[%clk 0:03:08.2]} 10... Nh5 {[%clk 0:02:38.1]} 11. O-O {[%clk
0:02:58.4]} 11... dxe5 {[%clk 0:02:19.4]} 12. Nxe5 {[%clk 0:02:55.5]} 12... Bxe5
{[%clk 0:02:20.3]} 13. fxe5 {[%clk 0:02:53.9]} 13... Rxe5 {[%clk 0:02:20.8]} 14.
d6 {[%clk 0:02:34.3]} 14... Nc6 {[%clk 0:02:20.9]} 15. Nd5 {[%clk 0:02:29.4]}
15... Be6 {[%clk 0:02:11]} 16. Nf4 {[%clk 0:02:28.8]} 16... Nxf4 {[%clk
0:02:06.7]} 17. Bxf4 {[%clk 0:02:30.7]} 17... Rd5 {[%clk 0:02:07.7]} 18. Qe1
{[%clk 0:02:17.2]} 18... Nd4 {[%clk 0:01:54.8]} 19. Bc4 {[%clk 0:02:08.6]} 19...
Rf5 {[%clk 0:01:41.9]} 20. Bxe6 {[%clk 0:02:00.6]} 20... Nxe6 {[%clk 0:01:42.2]}
21. Bg3 {[%clk 0:02:00]} 21... Qf6 {[%clk 0:01:21.6]} 22. Rxf5 {[%clk
0:01:41.6]} 22... Qxf5 {[%clk 0:01:20.2]} 23. Rd1 {[%clk 0:01:25.7]} 23... Rd8
{[%clk 0:01:12.9]} 24. Qa5 {[%clk 0:01:22.4]} 24... Qg4 {[%clk 0:00:37.2]} 25.
Re1 {[%clk 0:01:17.2]} 25... Qd4+ {[%clk 0:00:37.5]} 26. Kh1 {[%clk 0:01:13.2]}
26... c4 {[%clk 0:00:31.5]} 27. Rxe6 {[%clk 0:01:07.9]} 27... b6 {[%clk
0:00:23.4]} 28. Qe1 {[%clk 0:00:42.5]} 28... fxe6 {[%clk 0:00:20.2]} 29. Qxe6+
{[%clk 0:00:42.5]} 29... Kf8 {[%clk 0:00:21.3]} 30. Qe7+ {[%clk 0:00:43]} 30...
Kg8 {[%clk 0:00:22.2]} 31. Qxd8+ {[%clk 0:00:44]} 31... Kg7 {[%clk 0:00:23.7]}
32. Qe7+ {[%clk 0:00:44.4]} 32... Kh6 {[%clk 0:00:24.7]} 33. Qf8+ {[%clk
0:00:35.4]} 33... Kg5 {[%clk 0:00:22.8]} 34. Qf4+ {[%clk 0:00:32.3]} 34... Qxf4
{[%clk 0:00:23.1]} 35. Bxf4+ {[%clk 0:00:33.4]} 35... Kf6 {[%clk 0:00:24.3]} 36.
Kg1 {[%clk 0:00:31.2]} 36... Ke6 {[%clk 0:00:25.5]} 37. Kf2 {[%clk 0:00:32.2]}
37... b5 {[%clk 0:00:26.8]} 38. Ke3 {[%clk 0:00:33]} 38... a5 {[%clk 0:00:25.9]}
39. Kd4 {[%clk 0:00:33.9]} 39... g5 {[%clk 0:00:22.9]} 40. Bg3 {[%clk
0:00:27.3]} 40... h5 {[%clk 0:00:23.5]} 41. h3 {[%clk 0:00:28.6]} 41... Kd7
{[%clk 0:00:20.3]} 42. Kc5 {[%clk 0:00:29]} 42... a4 {[%clk 0:00:20.8]} 43. Kxb5
{[%clk 0:00:29.2]} 43... a3 {[%clk 0:00:22.2]} 44. Be5 {[%clk 0:00:20.4]} 44...
Ke6 {[%clk 0:00:16.8]} 45. Bc3 {[%clk 0:00:21.1]} 45... axb2 {[%clk 0:00:17.4]}
46. Bxb2 {[%clk 0:00:21.5]} 46... Kxd6 {[%clk 0:00:18.4]} 47. Kxc4 {[%clk
0:00:22.7]} 47... g4 {[%clk 0:00:19.8]} 48. a4 {[%clk 0:00:23.2]} 48... Kc6
{[%clk 0:00:18.9]} 49. hxg4 {[%clk 0:00:22.9]} 49... hxg4 {[%clk 0:00:19]} 50.
Kd4 {[%clk 0:00:24.4]} 50... Kb6 {[%clk 0:00:20.3]} 51. Ke4 {[%clk 0:00:25.8]}
51... Ka5 {[%clk 0:00:22.2]} 52. Kf4 {[%clk 0:00:26.9]} 52... Kxa4 {[%clk
0:00:24.1]} 53. Kxg4 {[%clk 0:00:28]} 53... Kb5 {[%clk 0:00:26]} 54. Kf5 {[%clk
0:00:28.4]} 54... Kc6 {[%clk 0:00:27.9]} 55. Ke6 {[%clk 0:00:29.6]} 55... Kc7
{[%clk 0:00:28]} 56. Bf6 {[%clk 0:00:28.6]} 56... Kc6 {[%clk 0:00:28.2]} 57. g4
{[%clk 0:00:29.5]} 1-0

[Event "*** Titled Tuesday Blitz"]
[Site "Chess.com"]
[Date "2018.11.06"]
[Round "9"]
[White "Pudor"]
[Black "2165149677570"]
[Result "1-0"]
[WhiteElo "2333"]
[BlackElo "2381"]
[TimeControl "180+2"]
[EndTime "15:06:32 PST"]
[Termination "Pudor won by resignation"]

1. d4 {[%clk 0:03:01.9]} 1... Nf6 {[%clk 0:02:56.6]} 2. c4 {[%clk 0:03:02.8]}
2... e6 {[%clk 0:02:56.2]} 3. Nc3 {[%clk 0:03:03.8]} 3... Bb4 {[%clk 0:02:56.8]}
4. Qc2 {[%clk 0:03:04.8]} 4... O-O {[%clk 0:02:57.5]} 5. a3 {[%clk 0:03:05.7]}
5... Bxc3+ {[%clk 0:02:58.5]} 6. Qxc3 {[%clk 0:03:07.6]} 6... b6 {[%clk
0:03:00.2]} 7. Bg5 {[%clk 0:03:07.7]} 7... h6 {[%clk 0:02:58]} 8. Bh4 {[%clk
0:03:08.2]} 8... Bb7 {[%clk 0:02:57.8]} 9. e3 {[%clk 0:03:08.9]} 9... d6 {[%clk
0:02:54.2]} 10. Ne2 {[%clk 0:03:09.6]} 10... c5 {[%clk 0:02:52.8]} 11. Qd3
{[%clk 0:03:09.6]} 11... Be4 {[%clk 0:02:52.9]} 12. Qd2 {[%clk 0:03:06.7]} 12...
Nbd7 {[%clk 0:02:52.7]} 13. Nc3 {[%clk 0:03:07.3]} 13... Bb7 {[%clk 0:02:53.7]}
14. Rd1 {[%clk 0:03:04.4]} 14... cxd4 {[%clk 0:01:34.6]} 15. Qxd4 {[%clk
0:03:01.4]} 15... Nc5 {[%clk 0:01:30.7]} 16. Be2 {[%clk 0:02:36.5]} 16... g5
{[%clk 0:01:20.8]} 17. Bg3 {[%clk 0:02:35.9]} 17... d5 {[%clk 0:01:22.3]} 18.
Be5 {[%clk 0:02:14.3]} 18... Nfe4 {[%clk 0:01:05.9]} 19. cxd5 {[%clk 0:01:48.4]}
19... Nxc3 {[%clk 0:00:54.1]} 20. Qxc3 {[%clk 0:01:44]} 20... Bxd5 {[%clk
0:00:52.3]} 21. O-O {[%clk 0:01:32.5]} 21... f6 {[%clk 0:00:46.6]} 22. Bg3
{[%clk 0:01:27]} 22... Ne4 {[%clk 0:00:46.9]} 23. Qc2 {[%clk 0:01:01.9]} 23...
Rc8 {[%clk 0:00:41.4]} 24. Qb1 {[%clk 0:01:02.5]} 24... Qe8 {[%clk 0:00:32.8]}
25. Bd3 {[%clk 0:00:51.5]} 25... Nxg3 {[%clk 0:00:26.1]} 26. hxg3 {[%clk
0:00:53.4]} 26... Kg7 {[%clk 0:00:23.5]} 27. Ba6 {[%clk 0:00:45.4]} 27... Rd8
{[%clk 0:00:21.4]} 28. Rd2 {[%clk 0:00:42.8]} 28... Qa4 {[%clk 0:00:21.9]} 29.
Be2 {[%clk 0:00:39.9]} 29... Be4 {[%clk 0:00:21.9]} 30. Qc1 {[%clk 0:00:35.4]}
30... Rc8 {[%clk 0:00:22.5]} 31. Qd1 {[%clk 0:00:30.7]} 31... Qc6 {[%clk
0:00:23.4]} 32. Rd6 {[%clk 0:00:27.4]} 32... Qa8 {[%clk 0:00:14.4]} 33. Rd7+
{[%clk 0:00:26.5]} 33... Rf7 {[%clk 0:00:13.1]} 34. Rxf7+ {[%clk 0:00:27]} 34...
Kxf7 {[%clk 0:00:15]} 35. Bh5+ {[%clk 0:00:26.4]} 35... Kf8 {[%clk 0:00:06.6]}
36. Qd6+ {[%clk 0:00:24.3]} 36... Kg8 {[%clk 0:00:04.1]} 37. Qxe6+ {[%clk
0:00:23.8]} 37... Kh7 {[%clk 0:00:05]} 38. Qf7+ {[%clk 0:00:21.5]} 38... Kh8
{[%clk 0:00:06.5]} 39. Qxf6+ {[%clk 0:00:22.9]} 39... Kh7 {[%clk 0:00:07.4]} 40.
Qe7+ {[%clk 0:00:21.5]} 40... Kh8 {[%clk 0:00:07.7]} 41. Qe5+ {[%clk 0:00:19.8]}
41... Kh7 {[%clk 0:00:08.4]} 42. Rd1 {[%clk 0:00:21.1]} 42... Qc6 {[%clk
0:00:02.8]} 43. Qe7+ {[%clk 0:00:20.3]} 43... Kh8 {[%clk 0:00:03.6]} 44. Qe5+
{[%clk 0:00:20]} 44... Kh7 {[%clk 0:00:04.9]} 45. Bg4 {[%clk 0:00:21.1]} 45...
Re8 {[%clk 0:00:05.3]} 46. Qd4 {[%clk 0:00:20.9]} 46... Bxg2 {[%clk 0:00:05.3]}
47. Bd7 {[%clk 0:00:21.9]} 47... Rd8 {[%clk 0:00:06.1]} 48. Bxc6 {[%clk
0:00:22.5]} 48... Rxd4 {[%clk 0:00:07.6]} 49. Rxd4 {[%clk 0:00:24.4]} 49... Bxc6
{[%clk 0:00:09.1]} 50. Rd6 {[%clk 0:00:25.2]} 50... Ba4 {[%clk 0:00:10.5]} 51.
Kg2 {[%clk 0:00:24.7]} 51... Kg7 {[%clk 0:00:11.3]} 52. Kf3 {[%clk 0:00:25.9]}
52... Bd1+ {[%clk 0:00:12.1]} 53. Rxd1 {[%clk 0:00:25.9]} 1-0

[Event "*** Titled Tuesday Blitz"]
[Site "Chess.com"]
[Date "2018.11.06"]
[Round "9"]
[White "chessdjw"]
[Black "severomorskij"]
[Result "0-1"]
[WhiteElo "2604"]
[BlackElo "2711"]
[TimeControl "180+2"]
[EndTime "15:06:44 PST"]
[Termination "severomorskij won by resignation"]

1. d4 {[%clk 0:03:01.9]} 1... Nf6 {[%clk 0:03:00.4]} 2. Nf3 {[%clk 0:03:03]}
2... c5 {[%clk 0:02:59.2]} 3. d5 {[%clk 0:03:03]} 3... b5 {[%clk 0:03:00.3]} 4.
Bg5 {[%clk 0:03:03.6]} 4... Ne4 {[%clk 0:03:00.9]} 5. Bf4 {[%clk 0:02:57.3]}
5... g6 {[%clk 0:02:57.7]} 6. e3 {[%clk 0:02:57.1]} 6... Bg7 {[%clk 0:02:58.2]}
7. c3 {[%clk 0:02:57.8]} 7... b4 {[%clk 0:02:51.5]} 8. Nbd2 {[%clk 0:01:41.5]}
8... Nxd2 {[%clk 0:02:38.9]} 9. Qxd2 {[%clk 0:01:43.4]} 9... bxc3 {[%clk
0:02:40.1]} 10. bxc3 {[%clk 0:01:45.2]} 10... d6 {[%clk 0:02:37.7]} 11. Bb5+
{[%clk 0:01:39.8]} 11... Bd7 {[%clk 0:02:36.7]} 12. Be2 {[%clk 0:01:33.8]} 12...
Qa5 {[%clk 0:02:32.2]} 13. Rc1 {[%clk 0:01:33.2]} 13... O-O {[%clk 0:02:15]} 14.
O-O {[%clk 0:01:33]} 14... Bg4 {[%clk 0:02:00.7]} 15. Qc2 {[%clk 0:01:04.9]}
15... Nd7 {[%clk 0:01:54]} 16. h3 {[%clk 0:00:51.1]} 16... Bxf3 {[%clk 0:01:53]}
17. Bxf3 {[%clk 0:00:53]} 17... Rab8 {[%clk 0:01:51.6]} 18. Bg4 {[%clk
0:00:48.8]} 18... Nf6 {[%clk 0:01:36.9]} 19. Bf3 {[%clk 0:00:49.2]} 19... Rb6
{[%clk 0:01:32.8]} 20. Rb1 {[%clk 0:00:47.4]} 20... Rfb8 {[%clk 0:01:33]} 21.
Rb3 {[%clk 0:00:40.5]} 21... c4 {[%clk 0:01:08.4]} 22. Rxb6 {[%clk 0:00:36.1]}
22... Rxb6 {[%clk 0:01:08]} 23. e4 {[%clk 0:00:31.6]} 23... Nd7 {[%clk 0:01:09]}
24. Be3 {[%clk 0:00:27.3]} 24... Nc5 {[%clk 0:00:57.4]} 25. Bd4 {[%clk
0:00:24.8]} 25... Qa3 {[%clk 0:00:36.8]} 26. Rb1 {[%clk 0:00:25]} 26... Rxb1+
{[%clk 0:00:27.7]} 27. Qxb1 {[%clk 0:00:26.9]} 27... Bxd4 {[%clk 0:00:28.9]} 28.
cxd4 {[%clk 0:00:27.6]} 28... Nd3 {[%clk 0:00:29.6]} 29. Be2 {[%clk 0:00:28.8]}
29... Qc3 {[%clk 0:00:27.3]} 30. Qb8+ {[%clk 0:00:25.2]} 30... Kg7 {[%clk
0:00:28.3]} 31. Kh2 {[%clk 0:00:15.9]} 31... Qxd4 {[%clk 0:00:27.4]} 32. Bf3
{[%clk 0:00:12.1]} 32... c3 {[%clk 0:00:23.6]} 33. Qb3 {[%clk 0:00:09.6]} 33...
Nxf2 {[%clk 0:00:18.3]} 34. Qc2 {[%clk 0:00:09.4]} 34... Nd3 {[%clk 0:00:19]}
35. Be2 {[%clk 0:00:09.7]} 35... Nb4 {[%clk 0:00:19.8]} 36. Qc1 {[%clk
0:00:09.6]} 36... c2 {[%clk 0:00:18.6]} 37. a3 {[%clk 0:00:10.7]} 37... Qxe4
{[%clk 0:00:14.7]} 38. Bf3 {[%clk 0:00:09.5]} 38... Qe5+ {[%clk 0:00:08.7]} 39.
Kh1 {[%clk 0:00:10.8]} 39... Nd3 {[%clk 0:00:06.8]} 40. Qxc2 {[%clk 0:00:12.2]}
40... Qa1+ {[%clk 0:00:07.7]} 41. Kh2 {[%clk 0:00:13]} 41... Qe5+ {[%clk
0:00:09.2]} 42. Kh1 {[%clk 0:00:14.6]} 42... Ne1 {[%clk 0:00:08.4]} 43. Qd1
{[%clk 0:00:11.7]} 43... Nxf3 {[%clk 0:00:08.9]} 44. Qxf3 {[%clk 0:00:13.6]}
44... f5 {[%clk 0:00:09.6]} 45. Qd3 {[%clk 0:00:13.2]} 45... a5 {[%clk
0:00:08.6]} 46. Qb5 {[%clk 0:00:13.9]} 46... Qc3 {[%clk 0:00:08.9]} 47. a4
{[%clk 0:00:14.4]} 47... Kf6 {[%clk 0:00:07.9]} 48. Qe2 {[%clk 0:00:15.4]} 48...
Qa1+ {[%clk 0:00:08.5]} 49. Kh2 {[%clk 0:00:15.5]} 49... Qe5+ {[%clk 0:00:09.9]}
50. Qxe5+ {[%clk 0:00:14.5]} 50... Kxe5 {[%clk 0:00:11.8]} 51. Kg3 {[%clk
0:00:16.1]} 51... Kxd5 {[%clk 0:00:12.8]} 52. Kh4 {[%clk 0:00:18]} 52... e5
{[%clk 0:00:13.7]} 53. Kg5 {[%clk 0:00:19.9]} 53... e4 {[%clk 0:00:15]} 54. Kh6
{[%clk 0:00:21.8]} 54... e3 {[%clk 0:00:16.3]} 55. Kxh7 {[%clk 0:00:23.7]} 55...
e2 {[%clk 0:00:17.7]} 56. Kxg6 {[%clk 0:00:25.6]} 56... e1=Q {[%clk 0:00:18.9]}
57. h4 {[%clk 0:00:27.5]} 57... Qg3+ {[%clk 0:00:19.2]} 0-1

[Event "*** Titled Tuesday Blitz"]
[Site "Chess.com"]
[Date "2018.11.06"]
[Round "9"]
[White "evgenysharapov"]
[Black "CarlssonLudvig"]
[Result "1-0"]
[WhiteElo "2405"]
[BlackElo "2277"]
[TimeControl "180+2"]
[EndTime "15:07:00 PST"]
[Termination "evgenysharapov won by resignation"]

1. c4 {[%clk 0:03:00.8]} 1... e6 {[%clk 0:02:56.9]} 2. Nf3 {[%clk 0:02:58.9]}
2... d5 {[%clk 0:02:57.1]} 3. cxd5 {[%clk 0:02:59.7]} 3... exd5 {[%clk
0:02:58.1]} 4. d4 {[%clk 0:03:00.4]} 4... c6 {[%clk 0:02:56.8]} 5. Nc3 {[%clk
0:03:01]} 5... Bd6 {[%clk 0:02:54.2]} 6. Bg5 {[%clk 0:02:59.6]} 6... Ne7 {[%clk
0:02:53.4]} 7. e3 {[%clk 0:02:55.4]} 7... f6 {[%clk 0:02:52.8]} 8. Bh4 {[%clk
0:02:55.7]} 8... O-O {[%clk 0:02:54.2]} 9. Bg3 {[%clk 0:02:55.2]} 9... a6 {[%clk
0:02:51.5]} 10. Bd3 {[%clk 0:02:54.6]} 10... Bf5 {[%clk 0:02:51.2]} 11. O-O
{[%clk 0:02:53.6]} 11... Bxg3 {[%clk 0:02:51.3]} 12. hxg3 {[%clk 0:02:54.1]}
12... Nd7 {[%clk 0:02:50.8]} 13. Rb1 {[%clk 0:02:53.3]} 13... Qc7 {[%clk
0:02:42.4]} 14. Qc2 {[%clk 0:02:50.3]} 14... Bxd3 {[%clk 0:02:41.9]} 15. Qxd3
{[%clk 0:02:51.2]} 15... Nc8 {[%clk 0:02:42.7]} 16. Rfc1 {[%clk 0:02:44.5]}
16... Qd8 {[%clk 0:02:40]} 17. Na4 {[%clk 0:02:25.4]} 17... Nd6 {[%clk
0:02:38.1]} 18. Nd2 {[%clk 0:02:23]} 18... Qe7 {[%clk 0:02:35.2]} 19. b4 {[%clk
0:02:20.2]} 19... b5 {[%clk 0:02:34.6]} 20. Nc5 {[%clk 0:02:09.4]} 20... Nc4
{[%clk 0:02:33.5]} 21. Nxc4 {[%clk 0:01:59]} 21... bxc4 {[%clk 0:02:32.4]} 22.
Qc2 {[%clk 0:01:54.4]} 22... Nxc5 {[%clk 0:02:32.3]} 23. bxc5 {[%clk 0:01:49.2]}
23... Rfb8 {[%clk 0:02:23.9]} 24. Rb6 {[%clk 0:01:46.8]} 24... Rxb6 {[%clk
0:02:20.1]} 25. cxb6 {[%clk 0:01:47.5]} 25... Rb8 {[%clk 0:02:18]} 26. Rb1
{[%clk 0:01:47.9]} 26... Qa3 {[%clk 0:02:15.1]} 27. e4 {[%clk 0:01:40.6]} 27...
Qd3 {[%clk 0:02:05.9]} 28. Qxd3 {[%clk 0:01:39.5]} 28... cxd3 {[%clk 0:02:07]}
29. exd5 {[%clk 0:01:39.8]} 29... cxd5 {[%clk 0:02:08.6]} 30. Kf1 {[%clk
0:01:37]} 30... Kf7 {[%clk 0:01:58.8]} 31. Ke1 {[%clk 0:01:37.3]} 31... Ke7
{[%clk 0:01:58.9]} 32. Kd2 {[%clk 0:01:38.4]} 32... Kd6 {[%clk 0:02:00.5]} 33.
a4 {[%clk 0:01:38.1]} 33... a5 {[%clk 0:01:57.3]} 34. Rb5 {[%clk 0:01:27.2]}
34... Kc6 {[%clk 0:01:58.4]} 35. Rxa5 {[%clk 0:01:22.8]} 35... Rxb6 {[%clk
0:01:58.4]} 36. Rc5+ {[%clk 0:01:19.3]} 36... Kd6 {[%clk 0:01:58.5]} 37. Kxd3
{[%clk 0:01:18.7]} 37... Rb2 {[%clk 0:01:59]} 38. Rc2 {[%clk 0:01:18.4]} 38...
Rb3+ {[%clk 0:02:00.3]} 39. Rc3 {[%clk 0:01:18.3]} 39... Rb2 {[%clk 0:02:01.2]}
40. Ke3 {[%clk 0:01:06.5]} 40... Ra2 {[%clk 0:02:02.3]} 41. Rb3 {[%clk
0:00:53.8]} 41... Rxa4 {[%clk 0:02:02.1]} 42. Rb7 {[%clk 0:00:53.6]} 42... Ra3+
{[%clk 0:01:53.5]} 43. Kf4 {[%clk 0:00:54]} 43... g6 {[%clk 0:01:44.6]} 44. Rxh7
{[%clk 0:00:40.4]} 44... Rd3 {[%clk 0:01:45.4]} 45. Rh6 {[%clk 0:00:25.9]} 45...
Rxd4+ {[%clk 0:01:28.6]} 46. Kf3 {[%clk 0:00:26.9]} 46... Re4 {[%clk 0:01:24.1]}
47. Rxg6 {[%clk 0:00:27.3]} 47... Ke5 {[%clk 0:01:24.9]} 48. Rg8 {[%clk
0:00:28]} 48... Kd6 {[%clk 0:01:17.1]} 49. g4 {[%clk 0:00:27.2]} 49... Re7
{[%clk 0:01:16.2]} 50. g5 {[%clk 0:00:26.9]} 50... fxg5 {[%clk 0:01:16.4]} 51.
Rxg5 {[%clk 0:00:27.4]} 51... Rf7+ {[%clk 0:01:17.6]} 52. Ke3 {[%clk 0:00:26.9]}
52... Ra7 {[%clk 0:01:17.7]} 53. Rg8 {[%clk 0:00:24.4]} 53... Ra3+ {[%clk
0:01:17.6]} 54. Kf4 {[%clk 0:00:24.8]} 54... Ra4+ {[%clk 0:01:18.9]} 55. Kg3
{[%clk 0:00:24.2]} 55... d4 {[%clk 0:01:18.6]} 56. Rd8+ {[%clk 0:00:24.5]} 56...
Ke5 {[%clk 0:01:14.3]} 57. f4+ {[%clk 0:00:23]} 57... Ke4 {[%clk 0:01:14]} 58.
Re8+ {[%clk 0:00:23.4]} 58... Kd3 {[%clk 0:01:15.1]} 59. Kg4 {[%clk 0:00:23.6]}
59... Kc2 {[%clk 0:01:09.6]} 60. Rc8+ {[%clk 0:00:23.7]} 60... Kd2 {[%clk
0:01:08.9]} 61. Rd8 {[%clk 0:00:23.8]} 61... d3 {[%clk 0:01:09.8]} 62. Kg5
{[%clk 0:00:24.3]} 62... Ke2 {[%clk 0:01:10.3]} 63. f5 {[%clk 0:00:24.4]} 63...
d2 {[%clk 0:01:10.5]} 64. f6 {[%clk 0:00:24.3]} 64... Ra3 {[%clk 0:01:06.1]} 65.
f7 {[%clk 0:00:21.6]} 65... Rg3+ {[%clk 0:01:03.8]} 66. Kh4 {[%clk 0:00:21.6]}
66... Rd3 {[%clk 0:01:04]} 67. Rxd3 {[%clk 0:00:21.4]} 1-0

[Event "*** Titled Tuesday Blitz"]
[Site "Chess.com"]
[Date "2018.11.06"]
[Round "9"]
[White "bascheyaro"]
[Black "sergeikim"]
[Result "1-0"]
[WhiteElo "2700"]
[BlackElo "2467"]
[TimeControl "180+2"]
[EndTime "15:07:07 PST"]
[Termination "bascheyaro won by resignation"]

1. d4 {[%clk 0:03:01.9]} 1... Nf6 {[%clk 0:02:59.7]} 2. Nf3 {[%clk 0:02:59.5]}
2... g6 {[%clk 0:03:00.6]} 3. c4 {[%clk 0:03:00.9]} 3... Bg7 {[%clk 0:03:01.6]}
4. Nc3 {[%clk 0:03:02.5]} 4... O-O {[%clk 0:03:02.3]} 5. e4 {[%clk 0:03:03.9]}
5... d6 {[%clk 0:03:03.3]} 6. Be2 {[%clk 0:03:04.9]} 6... e5 {[%clk 0:03:03.8]}
7. dxe5 {[%clk 0:03:06.3]} 7... dxe5 {[%clk 0:03:04.3]} 8. Qxd8 {[%clk
0:03:08.2]} 8... Rxd8 {[%clk 0:03:04.9]} 9. Bg5 {[%clk 0:03:09.7]} 9... c6
{[%clk 0:03:05.1]} 10. Nxe5 {[%clk 0:03:10.1]} 10... Na6 {[%clk 0:03:05.3]} 11.
Nd3 {[%clk 0:02:58.6]} 11... Re8 {[%clk 0:03:03]} 12. f3 {[%clk 0:02:58.7]}
12... Be6 {[%clk 0:02:51]} 13. Nf4 {[%clk 0:02:59.8]} 13... Bc8 {[%clk
0:02:49.1]} 14. O-O-O {[%clk 0:02:34.3]} 14... h6 {[%clk 0:02:48.3]} 15. Bxf6
{[%clk 0:02:35.7]} 15... Bxf6 {[%clk 0:02:49.8]} 16. Nd3 {[%clk 0:02:37]} 16...
Be6 {[%clk 0:02:44.4]} 17. e5 {[%clk 0:02:29.3]} 17... Be7 {[%clk 0:02:40]} 18.
b3 {[%clk 0:02:28.9]} 18... Nc5 {[%clk 0:02:20]} 19. f4 {[%clk 0:02:22.7]} 19...
h5 {[%clk 0:02:10.8]} 20. g3 {[%clk 0:02:21.9]} 20... a5 {[%clk 0:02:07.7]} 21.
Nxc5 {[%clk 0:02:18.4]} 21... Bxc5 {[%clk 0:02:07.6]} 22. Kc2 {[%clk 0:02:16.6]}
22... Bf5+ {[%clk 0:01:57.3]} 23. Bd3 {[%clk 0:02:17.6]} 23... Bg4 {[%clk
0:01:57.4]} 24. Rd2 {[%clk 0:02:07.3]} 24... Be3 {[%clk 0:01:51.1]} 25. Ne4
{[%clk 0:02:06.8]} 25... Bxd2 {[%clk 0:01:22.5]} 26. Nf6+ {[%clk 0:02:07.2]}
26... Kf8 {[%clk 0:01:23.8]} 27. Nxe8 {[%clk 0:02:08.2]} 27... Bxf4 {[%clk
0:01:17.9]} 28. Nc7 {[%clk 0:02:09.3]} 28... Rc8 {[%clk 0:01:18]} 29. gxf4
{[%clk 0:02:10.3]} 29... Rxc7 {[%clk 0:01:18.6]} 30. a3 {[%clk 0:01:59]} 30...
b5 {[%clk 0:00:59.9]} 31. Kc3 {[%clk 0:01:59]} 31... Ke7 {[%clk 0:00:48.1]} 32.
Be4 {[%clk 0:01:56.1]} 32... Be6 {[%clk 0:00:44.8]} 33. Rd1 {[%clk 0:01:51.5]}
33... h4 {[%clk 0:00:43]} 34. Rd6 {[%clk 0:01:51.1]} 34... bxc4 {[%clk
0:00:42.2]} 35. bxc4 {[%clk 0:01:50.6]} 35... Bd7 {[%clk 0:00:31]} 36. c5 {[%clk
0:01:50.4]} 36... Be8 {[%clk 0:00:26.5]} 37. Bg2 {[%clk 0:01:27.1]} 37... Bd7
{[%clk 0:00:24.3]} 38. Bf3 {[%clk 0:01:27.6]} 38... Be8 {[%clk 0:00:24]} 39. Be4
{[%clk 0:01:22]} 39... Bd7 {[%clk 0:00:24.3]} 40. Kb3 {[%clk 0:01:23.4]} 40...
Rb7+ {[%clk 0:00:22.8]} 41. Ka4 {[%clk 0:01:18.6]} 41... Rb2 {[%clk 0:00:16.3]}
42. Kxa5 {[%clk 0:01:17.5]} 42... Rxh2 {[%clk 0:00:15.5]} 43. Kb6 {[%clk
0:01:18.7]} 43... Rb2+ {[%clk 0:00:15.1]} 44. Kc7 {[%clk 0:01:19.6]} 44... Be8
{[%clk 0:00:16.1]} 45. Bxc6 {[%clk 0:01:13.2]} 45... Bxc6 {[%clk 0:00:15.9]} 46.
Kxc6 {[%clk 0:01:15.1]} 46... h3 {[%clk 0:00:17.1]} 47. Rd3 {[%clk 0:01:10.8]}
47... h2 {[%clk 0:00:16.9]} 48. Rh3 {[%clk 0:01:11.7]} 48... Ke6 {[%clk
0:00:15.1]} 49. a4 {[%clk 0:01:13]} 49... Kf5 {[%clk 0:00:16.1]} 50. Rh4 {[%clk
0:01:14]} 50... g5 {[%clk 0:00:16.2]} 51. fxg5 {[%clk 0:01:14.9]} 51... Kxg5
{[%clk 0:00:17.7]} 52. Rh8 {[%clk 0:01:15.9]} 52... Kf5 {[%clk 0:00:18.6]} 53.
Kd6 {[%clk 0:01:16.7]} 53... Rd2+ {[%clk 0:00:18.6]} 54. Ke7 {[%clk 0:01:16.6]}
54... Kxe5 {[%clk 0:00:19.7]} 55. c6 {[%clk 0:01:18.1]} 55... Rc2 {[%clk
0:00:20.2]} 56. Kd7 {[%clk 0:01:18.4]} 56... Rd2+ {[%clk 0:00:20.4]} 57. Kc8
{[%clk 0:01:19.8]} 57... Ra2 {[%clk 0:00:20]} 58. c7 {[%clk 0:01:18.6]} 58...
Rxa4 {[%clk 0:00:20.6]} 59. Rxh2 {[%clk 0:01:19.6]} 59... Rc4 {[%clk 0:00:21.2]}
60. Kd7 {[%clk 0:01:19.9]} 60... f5 {[%clk 0:00:22.1]} 61. Rh5 {[%clk
0:00:53.9]} 61... Ke4 {[%clk 0:00:20.4]} 62. Kd6 {[%clk 0:00:51.6]} 62... f4
{[%clk 0:00:19.4]} 63. Rc5 {[%clk 0:00:52.5]} 63... Rxc5 {[%clk 0:00:19.7]} 64.
Kxc5 {[%clk 0:00:53.8]} 64... f3 {[%clk 0:00:21.4]} 65. c8=Q {[%clk 0:00:55.2]}
65... f2 {[%clk 0:00:23]} 66. Qh3 {[%clk 0:00:56]} 1-0